[Event "Early-Titled-Tuesday-Blitz-October-17-2023"]
[Site "Chess.com"]
[Date "2023.10.17"]
[Round "4"]
[White "Manukyan_Artak"]
[Black "Aswathchess"]
[Result "0-1"]
[WhiteElo "2482"]
[BlackElo "2654"]
[TimeControl "180+1"]
[EndTime "8:42:10 PDT"]
[Termination "Aswathchess won on time"]

1. e4 {[%clk 0:03:00.9]} 1... g6 {[%clk 0:02:59.9]} 2. d4 {[%clk 0:03:00.8]}
2... Bg7 {[%clk 0:03:00.3]} 3. c4 {[%clk 0:03:00.4]} 3... d6 {[%clk 0:03:00.9]}
4. Nc3 {[%clk 0:03:00.7]} 4... Nc6 {[%clk 0:03:00.6]} 5. Be3 {[%clk 0:02:59.9]}
5... e5 {[%clk 0:03:00.3]} 6. d5 {[%clk 0:03:00.1]} 6... Nd4 {[%clk 0:03:00.7]}
7. Nge2 {[%clk 0:02:59.4]} 7... c5 {[%clk 0:03:01]} 8. dxc6 {[%clk 0:02:58.8]}
8... Nxc6 {[%clk 0:03:01.2]} 9. Nd5 {[%clk 0:02:51.9]} 9... Nge7 {[%clk
0:03:00.8]} 10. Qd2 {[%clk 0:02:50.1]} 10... O-O {[%clk 0:02:47.1]} 11. Bh6
{[%clk 0:02:43.1]} 11... Bxh6 {[%clk 0:02:44.1]} 12. Qxh6 {[%clk 0:02:42.8]}
12... Nxd5 {[%clk 0:02:44.4]} 13. cxd5 {[%clk 0:02:42.2]} 13... Nb4 {[%clk
0:02:40.2]} 14. Qd2 {[%clk 0:02:40.2]} 14... Qb6 {[%clk 0:02:27.9]} 15. a3
{[%clk 0:02:25.8]} 15... Na6 {[%clk 0:02:27.1]} 16. b4 {[%clk 0:02:24.8]} 16...
f5 {[%clk 0:02:26.1]} 17. Nc3 {[%clk 0:02:23.9]} 17... fxe4 {[%clk 0:02:25.2]}
18. Nxe4 {[%clk 0:02:23.5]} 18... Bf5 {[%clk 0:02:25.3]} 19. Ng3 {[%clk
0:02:02.6]} 19... Rac8 {[%clk 0:02:17.4]} 20. Nxf5 {[%clk 0:01:45.2]} 20... Rxf5
{[%clk 0:02:18.1]} 21. Bd3 {[%clk 0:01:45.1]} 21... Rf4 {[%clk 0:01:38]} 22. O-O
{[%clk 0:01:43.7]} 22... Nc7 {[%clk 0:01:37.9]} 23. Rac1 {[%clk 0:01:38.7]}
23... Rcf8 {[%clk 0:01:37.7]} 24. g3 {[%clk 0:01:22.8]} 24... Rd4 {[%clk
0:01:34.2]} 25. Qc2 {[%clk 0:01:18.4]} 25... Nxd5 {[%clk 0:01:32.4]} 26. Bc4
{[%clk 0:01:18.5]} 26... Kg7 {[%clk 0:01:30]} 27. Bxd5 {[%clk 0:01:17.3]} 27...
Rxd5 {[%clk 0:01:30.9]} 28. Qc7+ {[%clk 0:01:11.6]} 28... Rf7 {[%clk 0:01:27.6]}
29. Qxb6 {[%clk 0:01:11]} 29... axb6 {[%clk 0:01:28.5]} 30. Rfd1 {[%clk
0:01:07]} 30... Rxd1+ {[%clk 0:01:28.5]} 31. Rxd1 {[%clk 0:01:07.9]} 31... Rd7
{[%clk 0:01:29.4]} 32. Rd5 {[%clk 0:01:07.5]} 32... Kf6 {[%clk 0:01:27.2]} 33.
Kf1 {[%clk 0:01:05.6]} 33... Kf5 {[%clk 0:01:24.9]} 34. Ke2 {[%clk 0:01:02.6]}
34... Ke4 {[%clk 0:01:16.3]} 35. Rb5 {[%clk 0:01:02.4]} 35... d5 {[%clk
0:01:15.7]} 36. Rxb6 {[%clk 0:01:02]} 36... Rc7 {[%clk 0:01:14.2]} 37. f3+
{[%clk 0:00:58.4]} 37... Kd4 {[%clk 0:01:14.3]} 38. Kd2 {[%clk 0:00:55.4]} 38...
Rf7 {[%clk 0:01:09.4]} 39. Ke2 {[%clk 0:00:54.2]} 39... g5 {[%clk 0:01:05.9]}
40. a4 {[%clk 0:00:44.6]} 40... Rc7 {[%clk 0:01:00.3]} 41. Kd2 {[%clk
0:00:43.2]} 41... Kc4 {[%clk 0:00:58.3]} 42. a5 {[%clk 0:00:39.8]} 42... g4
{[%clk 0:00:55.5]} 43. fxg4 {[%clk 0:00:37.6]} 43... d4 {[%clk 0:00:50.5]} 44.
Re6 {[%clk 0:00:23.9]} 44... Kd5 {[%clk 0:00:50.2]} 45. Re8 {[%clk 0:00:23.9]}
45... e4 {[%clk 0:00:50.1]} 46. Rd8+ {[%clk 0:00:21.7]} 46... Kc4 {[%clk
0:00:50.2]} 47. Re8 {[%clk 0:00:21.7]} 47... e3+ {[%clk 0:00:50.1]} 48. Ke2
{[%clk 0:00:20.4]} 48... Rf7 {[%clk 0:00:50]} 49. Rc8+ {[%clk 0:00:18.9]} 49...
Kxb4 {[%clk 0:00:50.2]} 50. Kd3 {[%clk 0:00:19.3]} 50... Re7 {[%clk 0:00:45.8]}
51. Rc1 {[%clk 0:00:15.3]} 51... Rd7 {[%clk 0:00:45.7]} 52. g5 {[%clk
0:00:14.5]} 52... Kxa5 {[%clk 0:00:44.5]} 53. h4 {[%clk 0:00:14.6]} 53... b5
{[%clk 0:00:42.3]} 54. h5 {[%clk 0:00:14.7]} 54... b4 {[%clk 0:00:41.5]} 55. g6
{[%clk 0:00:14.9]} 55... hxg6 {[%clk 0:00:42]} 56. hxg6 {[%clk 0:00:15.4]} 56...
b3 {[%clk 0:00:41.6]} 57. g7 {[%clk 0:00:10.3]} 57... Rxg7 {[%clk 0:00:41.6]}
58. Kxd4 {[%clk 0:00:10.8]} 58... Kb4 {[%clk 0:00:38.6]} 59. Kxe3 {[%clk
0:00:08.6]} 59... b2 {[%clk 0:00:37.8]} 60. Rc6 {[%clk 0:00:06.3]} 60... Rb7
{[%clk 0:00:36.3]} 0-1

[Event "Early-Titled-Tuesday-Blitz-October-17-2023"]
[Site "Chess.com"]
[Date "2023.10.17"]
[Round "4"]
[White "Tobias_Koelle"]
[Black "SAInt_666"]
[Result "1-0"]
[WhiteElo "2964"]
[BlackElo "2771"]
[TimeControl "180+1"]
[EndTime "8:42:12 PDT"]
[Termination "Tobias_Koelle won by resignation"]

1. d4 {[%clk 0:03:00.9]} 1... Nf6 {[%clk 0:03:00.1]} 2. Nc3 {[%clk 0:02:55.9]}
2... d5 {[%clk 0:02:59.9]} 3. Bf4 {[%clk 0:02:54.5]} 3... a6 {[%clk 0:02:59.6]}
4. e3 {[%clk 0:02:53.1]} 4... b5 {[%clk 0:02:59.8]} 5. h4 {[%clk 0:02:45.6]}
5... e6 {[%clk 0:02:54.2]} 6. g4 {[%clk 0:02:45.6]} 6... c5 {[%clk 0:02:53.6]}
7. g5 {[%clk 0:02:45.6]} 7... Nfd7 {[%clk 0:02:54.3]} 8. Nf3 {[%clk 0:02:45.2]}
8... Nc6 {[%clk 0:02:54.3]} 9. Ne2 {[%clk 0:02:45.2]} 9... Bb7 {[%clk
0:02:44.1]} 10. Bh3 {[%clk 0:02:42.5]} 10... Nb6 {[%clk 0:02:38.8]} 11. Kf1
{[%clk 0:02:39.8]} 11... Bd6 {[%clk 0:02:39]} 12. Kg2 {[%clk 0:02:37.8]} 12...
cxd4 {[%clk 0:02:28.2]} 13. Nexd4 {[%clk 0:02:35.4]} 13... O-O {[%clk
0:02:14.4]} 14. h5 {[%clk 0:02:10.8]} 14... e5 {[%clk 0:01:46.2]} 15. Nxc6
{[%clk 0:01:40.6]} 15... Bxc6 {[%clk 0:01:47.1]} 16. h6 {[%clk 0:01:21.4]} 16...
g6 {[%clk 0:01:33.4]} 17. Bg3 {[%clk 0:01:00.5]} 17... f6 {[%clk 0:01:21.7]} 18.
Kh2 {[%clk 0:00:47.6]} 18... e4 {[%clk 0:01:02.3]} 19. Nd4 {[%clk 0:00:45.5]}
19... Bxg3+ {[%clk 0:01:01.7]} 20. fxg3 {[%clk 0:00:45.2]} 20... Bd7 {[%clk
0:01:02.3]} 21. Ne6 {[%clk 0:00:41]} 21... Bxe6 {[%clk 0:01:00]} 22. Bxe6+
{[%clk 0:00:41.9]} 22... Kh8 {[%clk 0:01:00.7]} 23. Qd4 {[%clk 0:00:42.6]} 23...
Nc4 {[%clk 0:00:30.7]} 24. Rhf1 {[%clk 0:00:40.7]} 24... Qb6 {[%clk 0:00:16.6]}
25. Rxf6 {[%clk 0:00:30.3]} 25... Qxd4 {[%clk 0:00:16.2]} 26. exd4 {[%clk
0:00:31.2]} 26... Rxf6 {[%clk 0:00:14.1]} 27. gxf6 {[%clk 0:00:32.1]} 27... Rf8
{[%clk 0:00:14.4]} 28. f7 {[%clk 0:00:30.5]} 28... e3 {[%clk 0:00:14.4]} 29.
Bxd5 {[%clk 0:00:29.3]} 29... Nd6 {[%clk 0:00:14.8]} 30. Re1 {[%clk 0:00:26.4]}
30... Nf5 {[%clk 0:00:13.2]} 31. Be6 {[%clk 0:00:19.3]} 31... Nxh6 {[%clk
0:00:11]} 32. Rxe3 {[%clk 0:00:19]} 32... Rxf7 {[%clk 0:00:09.5]} 33. Bxf7
{[%clk 0:00:18.9]} 33... Ng4+ {[%clk 0:00:09.9]} 34. Kg1 {[%clk 0:00:17.9]}
34... Nxe3 {[%clk 0:00:10.8]} 35. c3 {[%clk 0:00:13.6]} 35... Nd1 {[%clk
0:00:11.1]} 36. c4 {[%clk 0:00:09.7]} 36... bxc4 {[%clk 0:00:09.6]} 37. Bxc4
{[%clk 0:00:10.6]} 37... a5 {[%clk 0:00:07.5]} 38. b3 {[%clk 0:00:11.1]} 38...
Nc3 {[%clk 0:00:06.6]} 39. a4 {[%clk 0:00:10.8]} 39... Na2 {[%clk 0:00:05.1]}
40. Kf2 {[%clk 0:00:09.9]} 40... Kg7 {[%clk 0:00:05.7]} 41. Ke3 {[%clk
0:00:10.5]} 41... Kf6 {[%clk 0:00:06.2]} 42. Ke4 {[%clk 0:00:10.3]} 42... Nb4
{[%clk 0:00:06.9]} 43. d5 {[%clk 0:00:10.2]} 43... Ke7 {[%clk 0:00:06.1]} 44.
Ke5 {[%clk 0:00:10]} 44... g5 {[%clk 0:00:03]} 45. d6+ {[%clk 0:00:10.4]} 45...
Kd7 {[%clk 0:00:03.1]} 46. Bb5+ {[%clk 0:00:11.1]} 46... Kd8 {[%clk 0:00:03.7]}
47. Kf5 {[%clk 0:00:11.7]} 47... h6 {[%clk 0:00:03.8]} 48. Kg6 {[%clk
0:00:12.4]} 48... Nc2 {[%clk 0:00:02]} 49. Kxh6 {[%clk 0:00:12.5]} 49... g4
{[%clk 0:00:02.9]} 50. Kg5 {[%clk 0:00:12.4]} 50... Ne3 {[%clk 0:00:03.8]} 51.
Kf4 {[%clk 0:00:12.6]} 51... Nd5+ {[%clk 0:00:02.4]} 52. Kxg4 {[%clk 0:00:12.6]}
52... Nb6 {[%clk 0:00:03.3]} 53. Kf5 {[%clk 0:00:12.6]} 53... Nc8 {[%clk
0:00:04.2]} 54. Ke6 {[%clk 0:00:12.7]} 54... Nb6 {[%clk 0:00:02.7]} 55. g4
{[%clk 0:00:12.9]} 55... Nd7 {[%clk 0:00:03.4]} 56. g5 {[%clk 0:00:12.4]} 56...
Nc5+ {[%clk 0:00:03.9]} 57. Kd5 {[%clk 0:00:12.9]} 1-0

[Event "Early-Titled-Tuesday-Blitz-October-17-2023"]
[Site "Chess.com"]
[Date "2023.10.17"]
[Round "4"]
[White "Sanyura"]
[Black "attack2mateU"]
[Result "0-1"]
[WhiteElo "2538"]
[BlackElo "2728"]
[TimeControl "180+1"]
[EndTime "8:42:16 PDT"]
[Termination "attack2mateU won on time"]

1. Nf3 {[%clk 0:02:53.2]} 1... c5 {[%clk 0:03:00.1]} 2. g3 {[%clk 0:02:48.7]}
2... Nc6 {[%clk 0:02:59.6]} 3. d3 {[%clk 0:02:48]} 3... d5 {[%clk 0:02:58.2]} 4.
Bg2 {[%clk 0:02:46.1]} 4... e5 {[%clk 0:02:58.5]} 5. O-O {[%clk 0:02:42.4]} 5...
Be7 {[%clk 0:02:57.8]} 6. e4 {[%clk 0:02:33.1]} 6... d4 {[%clk 0:02:57.2]} 7.
Nbd2 {[%clk 0:02:26.4]} 7... Be6 {[%clk 0:02:56.1]} 8. a4 {[%clk 0:02:22.7]}
8... h5 {[%clk 0:02:54.5]} 9. b3 {[%clk 0:02:21.5]} 9... h4 {[%clk 0:02:54]} 10.
Nc4 {[%clk 0:02:20.9]} 10... Qc7 {[%clk 0:02:44.3]} 11. Ng5 {[%clk 0:02:17.3]}
11... Bxg5 {[%clk 0:02:43.5]} 12. Bxg5 {[%clk 0:02:17.5]} 12... f6 {[%clk
0:02:37.2]} 13. Bd2 {[%clk 0:02:17.5]} 13... hxg3 {[%clk 0:02:30.9]} 14. hxg3
{[%clk 0:02:18.4]} 14... O-O-O {[%clk 0:02:25.3]} 15. f4 {[%clk 0:02:15.7]}
15... Nh6 {[%clk 0:02:19]} 16. f5 {[%clk 0:02:11.1]} 16... Bxc4 {[%clk 0:02:19]}
17. bxc4 {[%clk 0:02:10.7]} 17... a5 {[%clk 0:02:08.2]} 18. Bf3 {[%clk
0:02:04.3]} 18... Nf7 {[%clk 0:02:05]} 19. Kg2 {[%clk 0:02:03.5]} 19... Nb4
{[%clk 0:02:02.1]} 20. Bxb4 {[%clk 0:02:03.2]} 20... cxb4 {[%clk 0:01:59.4]} 21.
Bh5 {[%clk 0:01:56]} 21... Nd6 {[%clk 0:01:54.9]} 22. Qg4 {[%clk 0:01:55.8]}
22... Rh6 {[%clk 0:01:46.7]} 23. Rh1 {[%clk 0:01:40.6]} 23... Rdh8 {[%clk
0:01:46.9]} 24. Rh4 {[%clk 0:01:39.7]} 24... b6 {[%clk 0:01:32.1]} 25. Rah1
{[%clk 0:01:35]} 25... Nb7 {[%clk 0:01:32.4]} 26. Bg6 {[%clk 0:01:32.6]} 26...
Rxh4 {[%clk 0:01:29.8]} 27. Rxh4 {[%clk 0:01:33.5]} 27... Rxh4 {[%clk
0:01:29.8]} 28. Qxh4 {[%clk 0:01:34.4]} 28... Qe7 {[%clk 0:01:13.1]} 29. Qh8+
{[%clk 0:01:32.6]} 29... Kc7 {[%clk 0:01:13.4]} 30. Qa8 {[%clk 0:01:26.7]} 30...
Qd8 {[%clk 0:01:12.9]} 31. Qa6 {[%clk 0:01:25.4]} 31... Qd7 {[%clk 0:00:59.5]}
32. g4 {[%clk 0:01:19.1]} 32... Qxa4 {[%clk 0:00:52.9]} 33. Bf7 {[%clk
0:01:15.2]} 33... Qxc2+ {[%clk 0:00:52.9]} 34. Kh3 {[%clk 0:01:14.3]} 34...
Qxd3+ {[%clk 0:00:51.4]} 35. Kh4 {[%clk 0:01:14.6]} 35... Qe2 {[%clk 0:00:32.7]}
36. Kg3 {[%clk 0:00:55.9]} 36... Qe3+ {[%clk 0:00:32.9]} 37. Kh2 {[%clk
0:00:54.6]} 37... Qf2+ {[%clk 0:00:32.3]} 38. Kh3 {[%clk 0:00:55]} 38... Qf3+
{[%clk 0:00:32.5]} 39. Kh2 {[%clk 0:00:55.4]} 39... Qe2+ {[%clk 0:00:21]} 40.
Kh3 {[%clk 0:00:54]} 40... Qf1+ {[%clk 0:00:09.2]} 41. Kh2 {[%clk 0:00:53.9]}
41... Qf4+ {[%clk 0:00:08.2]} 42. Kh3 {[%clk 0:00:53.9]} 42... Qh6+ {[%clk
0:00:08.4]} 43. Kg3 {[%clk 0:00:52]} 43... Qh8 {[%clk 0:00:06.5]} 44. Bd5 {[%clk
0:00:50.2]} 44... Qb8 {[%clk 0:00:07.1]} 45. Qb5 {[%clk 0:00:49.4]} 45... Nc5
{[%clk 0:00:04]} 46. Qc6+ {[%clk 0:00:49]} 46... Kd8 {[%clk 0:00:04.7]} 47. Bf7
{[%clk 0:00:43.1]} 47... Nd7 {[%clk 0:00:05.1]} 48. Qe6 {[%clk 0:00:37.2]} 48...
b3 {[%clk 0:00:03.5]} 49. Be8 {[%clk 0:00:32.4]} 49... Qc7 {[%clk 0:00:03.9]}
50. Qg8 {[%clk 0:00:28.6]} 50... Qd6 {[%clk 0:00:02.4]} 51. Bxd7+ {[%clk
0:00:03]} 51... Kxd7 {[%clk 0:00:03.3]} 52. Qf7+ {[%clk 0:00:02.8]} 52... Kc6
{[%clk 0:00:03.3]} 53. Qe8+ {[%clk 0:00:02.5]} 53... Kb7 {[%clk 0:00:02.8]} 54.
Qf7+ {[%clk 0:00:01.1]} 54... Qc7 {[%clk 0:00:03.2]} 0-1

[Event "Early-Titled-Tuesday-Blitz-October-17-2023"]
[Site "Chess.com"]
[Date "2023.10.17"]
[Round "4"]
[White "Mr_ruthless"]
[Black "ChesscularGodofchess"]
[Result "1/2-1/2"]
[WhiteElo "2461"]
[BlackElo "2201"]
[TimeControl "180+1"]
[EndTime "8:42:20 PDT"]
[Termination "Game drawn by repetition"]

1. e4 {[%clk 0:03:00.9]} 1... c5 {[%clk 0:02:59.7]} 2. Nf3 {[%clk 0:02:59]} 2...
d6 {[%clk 0:02:59.4]} 3. d4 {[%clk 0:02:59.5]} 3... cxd4 {[%clk 0:03:00.3]} 4.
Nxd4 {[%clk 0:03:00.4]} 4... Nf6 {[%clk 0:03:00.7]} 5. f3 {[%clk 0:03:01.1]}
5... Nc6 {[%clk 0:02:57.5]} 6. c4 {[%clk 0:03:00.4]} 6... e6 {[%clk 0:02:48.3]}
7. Nc3 {[%clk 0:03:00.5]} 7... Be7 {[%clk 0:02:47.2]} 8. Be3 {[%clk 0:03:00.9]}
8... a6 {[%clk 0:02:47]} 9. Be2 {[%clk 0:03:01.1]} 9... Bd7 {[%clk 0:02:46.8]}
10. O-O {[%clk 0:03:01]} 10... O-O {[%clk 0:02:46.1]} 11. Rc1 {[%clk 0:03:00.9]}
11... Rb8 {[%clk 0:02:41.3]} 12. Qd2 {[%clk 0:02:57.4]} 12... Ne5 {[%clk
0:02:23.7]} 13. Rfd1 {[%clk 0:02:55.4]} 13... Qc7 {[%clk 0:02:23.1]} 14. b3
{[%clk 0:02:43.1]} 14... Rfd8 {[%clk 0:02:22.1]} 15. Kh1 {[%clk 0:02:42.6]}
15... Qa5 {[%clk 0:02:13.6]} 16. Nd5 {[%clk 0:02:12.9]} 16... Qxd2 {[%clk
0:02:12.9]} 17. Nxe7+ {[%clk 0:02:13.5]} 17... Kf8 {[%clk 0:02:13.4]} 18. Rxd2
{[%clk 0:02:14.2]} 18... Kxe7 {[%clk 0:02:14]} 19. Rcd1 {[%clk 0:02:14]} 19...
Ne8 {[%clk 0:02:06.7]} 20. f4 {[%clk 0:02:12.1]} 20... Nc6 {[%clk 0:02:05.5]}
21. Bf3 {[%clk 0:02:05.3]} 21... Nxd4 {[%clk 0:02:05]} 22. Bxd4 {[%clk
0:02:06.2]} 22... Bc6 {[%clk 0:02:02.7]} 23. Bb6 {[%clk 0:01:59.2]} 23... Rd7
{[%clk 0:02:02.8]} 24. Kg1 {[%clk 0:01:48.2]} 24... Nf6 {[%clk 0:01:44.2]} 25.
Rxd6 {[%clk 0:01:15.8]} 25... Rxd6 {[%clk 0:01:40.8]} 26. Bc5 {[%clk 0:01:16.4]}
26... Rd8 {[%clk 0:01:29.1]} 27. e5 {[%clk 0:01:02.6]} 27... Bxf3 {[%clk
0:01:20.5]} 28. Rxd6 {[%clk 0:00:26.3]} 28... Rxd6 {[%clk 0:01:04.3]} 29. Bxd6+
{[%clk 0:00:26.1]} 29... Kd7 {[%clk 0:00:47.9]} 30. gxf3 {[%clk 0:00:16.2]}
30... Nh5 {[%clk 0:00:46]} 31. Bf8 {[%clk 0:00:16.7]} 31... Nxf4 {[%clk
0:00:41.2]} 32. Bxg7 {[%clk 0:00:16.7]} 32... Ne2+ {[%clk 0:00:39]} 33. Kf2
{[%clk 0:00:15.4]} 33... Nc1 {[%clk 0:00:39.6]} 34. Ke3 {[%clk 0:00:13.4]} 34...
Nxa2 {[%clk 0:00:39.5]} 35. Bf8 {[%clk 0:00:13.8]} 35... Nc1 {[%clk 0:00:37.4]}
36. b4 {[%clk 0:00:11.5]} 36... Nb3 {[%clk 0:00:34.3]} 37. h4 {[%clk 0:00:11.6]}
37... b6 {[%clk 0:00:32.1]} 38. h5 {[%clk 0:00:11.8]} 38... a5 {[%clk
0:00:31.6]} 39. bxa5 {[%clk 0:00:11.7]} 39... bxa5 {[%clk 0:00:32.5]} 40. Kf4
{[%clk 0:00:11.4]} 40... Kc6 {[%clk 0:00:30.4]} 41. Kg5 {[%clk 0:00:11]} 41...
Nc5 {[%clk 0:00:28.8]} 42. Kh6 {[%clk 0:00:06.6]} 42... a4 {[%clk 0:00:28.7]}
43. Kxh7 {[%clk 0:00:04.3]} 43... a3 {[%clk 0:00:28.9]} 44. Kg8 {[%clk
0:00:04.3]} 44... a2 {[%clk 0:00:28.7]} 45. h6 {[%clk 0:00:05]} 45... a1=Q
{[%clk 0:00:28.7]} 46. h7 {[%clk 0:00:05.8]} 46... Qxe5 {[%clk 0:00:17]} 47. Bg7
{[%clk 0:00:03.7]} 47... Qb8+ {[%clk 0:00:16]} 48. Kxf7 {[%clk 0:00:02.7]} 48...
Qc7+ {[%clk 0:00:09.9]} 49. Kg6 {[%clk 0:00:02.7]} 49... Qg3+ {[%clk 0:00:05.9]}
50. Kh6 {[%clk 0:00:02.6]} 50... Qf4+ {[%clk 0:00:04.1]} 51. Kg6 {[%clk
0:00:02.3]} 51... Qf5+ {[%clk 0:00:04.5]} 52. Kh6 {[%clk 0:00:02.4]} 52... Qh3+
{[%clk 0:00:04.5]} 53. Kg6 {[%clk 0:00:02.6]} 53... Qf5+ {[%clk 0:00:05.1]} 54.
Kh6 {[%clk 0:00:03]} 54... Qh3+ {[%clk 0:00:05.1]} 55. Kg6 {[%clk 0:00:02.5]}
55... Qf5+ {[%clk 0:00:04.8]} 1/2-1/2

[Event "Early-Titled-Tuesday-Blitz-October-17-2023"]
[Site "Chess.com"]
[Date "2023.10.17"]
[Round "4"]
[White "UK_23"]
[Black "AlexPapasimakopoulos"]
[Result "1-0"]
[WhiteElo "2427"]
[BlackElo "2677"]
[TimeControl "180+1"]
[EndTime "8:42:21 PDT"]
[Termination "UK_23 won on time"]

1. e4 {[%clk 0:03:00.9]} 1... e6 {[%clk 0:03:00]} 2. d4 {[%clk 0:02:58.8]} 2...
d5 {[%clk 0:03:00.2]} 3. exd5 {[%clk 0:02:59.7]} 3... exd5 {[%clk 0:03:00.3]} 4.
Nf3 {[%clk 0:02:59.9]} 4... Bg4 {[%clk 0:02:58.3]} 5. h3 {[%clk 0:02:58.4]} 5...
Bh5 {[%clk 0:02:58.3]} 6. Qe2+ {[%clk 0:02:55.9]} 6... Qe7 {[%clk 0:02:58.6]} 7.
Be3 {[%clk 0:02:54.7]} 7... Nc6 {[%clk 0:02:59.2]} 8. Nc3 {[%clk 0:02:51.9]}
8... O-O-O {[%clk 0:02:57.9]} 9. O-O-O {[%clk 0:02:49.6]} 9... f6 {[%clk
0:02:58.4]} 10. g4 {[%clk 0:02:48.7]} 10... Bf7 {[%clk 0:02:58.5]} 11. Kb1
{[%clk 0:02:48.9]} 11... Qd7 {[%clk 0:02:58.4]} 12. Qb5 {[%clk 0:02:46.2]} 12...
Kb8 {[%clk 0:02:55.6]} 13. Bg2 {[%clk 0:02:22.1]} 13... Nge7 {[%clk 0:02:55.5]}
14. Nd2 {[%clk 0:02:18]} 14... Nc8 {[%clk 0:02:55.3]} 15. Nb3 {[%clk 0:02:18]}
15... a6 {[%clk 0:02:55.3]} 16. Qe2 {[%clk 0:02:14.5]} 16... Nb6 {[%clk
0:02:43.3]} 17. Nc5 {[%clk 0:02:11]} 17... Qc8 {[%clk 0:02:33.4]} 18. b3 {[%clk
0:01:38]} 18... h5 {[%clk 0:01:57.3]} 19. Qf3 {[%clk 0:01:28]} 19... Ne7 {[%clk
0:01:44.6]} 20. a4 {[%clk 0:01:18]} 20... Nd7 {[%clk 0:01:35.6]} 21. Nd3 {[%clk
0:01:14.3]} 21... Ka7 {[%clk 0:01:19.3]} 22. Nf4 {[%clk 0:01:02.8]} 22... c6
{[%clk 0:00:59.8]} 23. Nxh5 {[%clk 0:00:57.2]} 23... Bxh5 {[%clk 0:00:52.9]} 24.
gxh5 {[%clk 0:00:58.1]} 24... a5 {[%clk 0:00:47.2]} 25. Bf4 {[%clk 0:00:55.8]}
25... Nb8 {[%clk 0:00:47]} 26. Kb2 {[%clk 0:00:46.2]} 26... Na6 {[%clk
0:00:46.8]} 27. Rhe1 {[%clk 0:00:45.2]} 27... Nb4 {[%clk 0:00:42.6]} 28. Qg4
{[%clk 0:00:36.2]} 28... Qf5 {[%clk 0:00:40.3]} 29. Qxf5 {[%clk 0:00:27.1]}
29... Nxf5 {[%clk 0:00:40.1]} 30. Bf3 {[%clk 0:00:25.1]} 30... Nh4 {[%clk
0:00:37.5]} 31. Bg4 {[%clk 0:00:22.1]} 31... Bd6 {[%clk 0:00:34.5]} 32. Bxd6
{[%clk 0:00:20.1]} 32... Rxd6 {[%clk 0:00:35.4]} 33. Re7 {[%clk 0:00:20.6]}
33... f5 {[%clk 0:00:35.6]} 34. Be2 {[%clk 0:00:19.7]} 34... g6 {[%clk
0:00:31.4]} 35. Rg1 {[%clk 0:00:19.6]} 35... f4 {[%clk 0:00:25.7]} 36. hxg6
{[%clk 0:00:18.6]} 36... Rxg6 {[%clk 0:00:20.3]} 37. Rxg6 {[%clk 0:00:17.6]}
37... Nxg6 {[%clk 0:00:21.2]} 38. Rg7 {[%clk 0:00:18.3]} 38... Nh4 {[%clk
0:00:20.5]} 39. Bg4 {[%clk 0:00:18.8]} 39... Ng2 {[%clk 0:00:19.1]} 40. Na2
{[%clk 0:00:18.9]} 40... Nxa2 {[%clk 0:00:18.4]} 41. Kxa2 {[%clk 0:00:19.8]}
41... Re8 {[%clk 0:00:15.5]} 42. Rf7 {[%clk 0:00:20.1]} 42... Kb6 {[%clk
0:00:13]} 43. Kb2 {[%clk 0:00:20.5]} 43... Ka6 {[%clk 0:00:10.1]} 44. Bf3 {[%clk
0:00:21]} 44... Nh4 {[%clk 0:00:09.5]} 45. Bg4 {[%clk 0:00:21.7]} 45... Kb6
{[%clk 0:00:09]} 46. Rxf4 {[%clk 0:00:20.8]} 46... Rh8 {[%clk 0:00:06.8]} 47.
Rf7 {[%clk 0:00:20.7]} 47... Ng2 {[%clk 0:00:06.5]} 48. f4 {[%clk 0:00:21.1]}
48... Ne3 {[%clk 0:00:06.4]} 49. f5 {[%clk 0:00:21.4]} 49... Rg8 {[%clk
0:00:07]} 50. f6 {[%clk 0:00:20.8]} 50... Nxg4 {[%clk 0:00:07.1]} 51. hxg4
{[%clk 0:00:21.7]} 51... Rxg4 {[%clk 0:00:07.5]} 52. Rg7 {[%clk 0:00:20.5]}
52... Rxd4 {[%clk 0:00:07.2]} 53. f7 {[%clk 0:00:19.4]} 53... Rf4 {[%clk
0:00:07.2]} 54. Kc3 {[%clk 0:00:19.9]} 54... Kc5 {[%clk 0:00:07.2]} 55. Kd3
{[%clk 0:00:20.4]} 55... b5 {[%clk 0:00:04.9]} 56. c3 {[%clk 0:00:20]} 56...
bxa4 {[%clk 0:00:03.4]} 57. bxa4 {[%clk 0:00:20.9]} 57... Rf6 {[%clk 0:00:03.2]}
58. Rh7 {[%clk 0:00:19.6]} 58... Rf3+ {[%clk 0:00:02.8]} 59. Ke2 {[%clk
0:00:19.2]} 59... Rf4 {[%clk 0:00:03.3]} 60. Ke3 {[%clk 0:00:19.2]} 60... Rf1
{[%clk 0:00:03.5]} 61. Ke2 {[%clk 0:00:17.4]} 61... Rf6 {[%clk 0:00:02.6]} 62.
Ke3 {[%clk 0:00:14.6]} 62... Kc4 {[%clk 0:00:01.8]} 63. Rh4+ {[%clk 0:00:14.4]}
1-0